[Event "Titled Tuesday Blitz January 03 Early 2023"]
[White "Aghasiyev, Kamal"]
[Black "Makhmudov, Shukhrat"]
[WhiteFideId "13402854"]
[BlackFideId "14200775"]
[WhiteElo "2441"]
[BlackElo "2115"]
[Result "1-0"]
[Round "05"]
[TimeControl "180+2"]
[Date "2023.01.03"]
[WhiteClock "0:00:11"]
[BlackClock "0:00:07"]

1. d4 {[%clk 0:02:51]}  Nf6 {[%clk 0:02:59]} 2. c4 {[%clk 0:02:48]}  e6 {[%clk 0:02:59]} 3. Nf3 {[%clk 0:02:48]}  d5 {[%clk 0:02:59]} 4. g3 {[%clk 0:02:47]}  Bb4+ {[%clk 0:02:58]} 5. Bd2 {[%clk 0:02:47]}  a5 {[%clk 0:02:56]} 6. a3 {[%clk 0:02:44]}  Be7 {[%clk 0:02:49]} 7. Bg2 {[%clk 0:02:41]}  c6 {[%clk 0:02:44]} 8. Qc2 {[%clk 0:02:39]}  b6 {[%clk 0:02:42]} 9. cxd5 {[%clk 0:02:33]}  cxd5 {[%clk 0:02:42]} 10. O-O {[%clk 0:02:33]}  O-O {[%clk 0:02:42]} 11. Nc3 {[%clk 0:02:33]}  Ba6 {[%clk 0:02:39]} 12. Ne5 {[%clk 0:02:25]}  Nfd7 {[%clk 0:02:39]} 13. f4 {[%clk 0:02:05]}  Nxe5 {[%clk 0:02:05]} 14. fxe5 {[%clk 0:01:47]}  f6 {[%clk 0:01:57]} 15. Bh3 {[%clk 0:01:16]}  f5 {[%clk 0:01:34]} 16. Be3 {[%clk 0:01:11]}  Bg5 {[%clk 0:01:09]} 17. Qd2 {[%clk 0:01:09]}  Bxe3+ {[%clk 0:01:07]} 18. Qxe3 {[%clk 0:01:09]}  Nc6 {[%clk 0:01:07]} 19. Rac1 {[%clk 0:01:07]}  Rc8 {[%clk 0:01:06]} 20. g4 {[%clk 0:00:59]}  g6 {[%clk 0:00:52]} 21. gxf5 {[%clk 0:00:57]}  gxf5 {[%clk 0:00:49]} 22. Kh1 {[%clk 0:00:56]}  Kh8 {[%clk 0:00:49]} 23. Qf4 {[%clk 0:00:50]}  Rg8 {[%clk 0:00:49]} 24. Rg1 {[%clk 0:00:47]}  Qd7 {[%clk 0:00:48]} 25. Rcf1 {[%clk 0:00:25]}  Qf7 {[%clk 0:00:35]} 26. Qh4 {[%clk 0:00:23]}  Rxg1+ {[%clk 0:00:29]} 27. Rxg1 {[%clk 0:00:22]}  Rg8 {[%clk 0:00:27]} 28. Rxg8+ {[%clk 0:00:19]}  Kxg8 {[%clk 0:00:28]} 29. Qg5+ {[%clk 0:00:15]}  Qg6 {[%clk 0:00:28]} 30. Qf4 {[%clk 0:00:12]}  h6 {[%clk 0:00:25]} 31. Bg2 {[%clk 0:00:12]}  Qg5 {[%clk 0:00:26]} 32. Qxg5+ {[%clk 0:00:07]}  hxg5 {[%clk 0:00:26]} 33. e3 {[%clk 0:00:08]}  b5 {[%clk 0:00:19]} 34. Bf1 {[%clk 0:00:08]}  Na7 {[%clk 0:00:18]} 35. Kg1 {[%clk 0:00:07]}  Kf7 {[%clk 0:00:17]} 36. Kf2 {[%clk 0:00:08]}  Kg6 {[%clk 0:00:18]} 37. Kg3 {[%clk 0:00:08]}  Kh5 {[%clk 0:00:18]} 38. Be2+ {[%clk 0:00:08]}  Kg6 {[%clk 0:00:18]} 39. h4 {[%clk 0:00:09]}  gxh4+ {[%clk 0:00:18]} 40. Kxh4 {[%clk 0:00:09]}  Kh6 {[%clk 0:00:19]} 41. b4 {[%clk 0:00:08]}  axb4 {[%clk 0:00:18]} 42. axb4 {[%clk 0:00:09]}  Nc6 {[%clk 0:00:19]} 43. Bxb5 {[%clk 0:00:10]}  Bxb5 {[%clk 0:00:19]} 44. Nxb5 {[%clk 0:00:11]}  Nxb4 {[%clk 0:00:19]} 45. Kg3 {[%clk 0:00:11]}  Kg7 {[%clk 0:00:18]} 46. Nd6 {[%clk 0:00:10]}  Nc2 {[%clk 0:00:17]} 47. Kf4 {[%clk 0:00:09]}  Ne1 {[%clk 0:00:17]} 48. Ne8+ {[%clk 0:00:09]}  Kf7 {[%clk 0:00:17]} 49. Nd6+ {[%clk 0:00:10]}  Ke7 {[%clk 0:00:17]} 50. Nb5 {[%clk 0:00:10]}  Ng2+ {[%clk 0:00:16]} 51. Kf3 {[%clk 0:00:10]}  Ne1+ {[%clk 0:00:16]} 52. Ke2 {[%clk 0:00:10]}  Ng2 {[%clk 0:00:16]} 53. Nc3 {[%clk 0:00:10]}  Nh4 {[%clk 0:00:16]} 54. Kf2 {[%clk 0:00:10]}  Ng6 {[%clk 0:00:16]} 55. Kg3 {[%clk 0:00:10]}  Kd7 {[%clk 0:00:16]} 56. Ne2 {[%clk 0:00:10]}  Kc6 {[%clk 0:00:15]} 57. Nf4 {[%clk 0:00:09]}  Nf8 {[%clk 0:00:15]} 58. Kh4 {[%clk 0:00:09]}  Kd7 {[%clk 0:00:13]} 59. Kg5 {[%clk 0:00:10]}  Ke7 {[%clk 0:00:13]} 60. Ng6+ {[%clk 0:00:10]}  Kf7 {[%clk 0:00:07]} 61. Nxf8 {[%clk 0:00:10]}  Kxf8 {[%clk 0:00:07]} 62. Kf6 {[%clk 0:00:10]}  Ke8 {[%clk 0:00:07]} 63. Kxe6 {[%clk 0:00:11]}  f4 {[%clk 0:00:07]} 64. exf4 {[%clk 0:00:11]} 1-0


[Site "https://www.chess.com"]

[Event "Titled Tuesday Blitz January 03 Early 2023"]
[White "Parpiev, Isaak"]
[Black "Bommini, Mounika Akshaya"]
[WhiteFideId "34281576"]
[BlackFideId "25019872"]
[WhiteElo "2167"]
[BlackElo "2118"]
[Result "1-0"]
[Round "05"]
[TimeControl "180+2"]
[Date "2023.01.03"]
[WhiteClock "0:02:15"]
[BlackClock "0:02:11"]

1. d4 {[%clk 0:03:00]}  Nf6 {[%clk 0:02:44]} 2. c4 {[%clk 0:03:00]}  c5 {[%clk 0:02:44]} 3. d5 {[%clk 0:03:00]}  e6 {[%clk 0:02:43]} 4. Nc3 {[%clk 0:02:59]}  exd5 {[%clk 0:02:43]} 5. cxd5 {[%clk 0:03:00]}  d6 {[%clk 0:02:41]} 6. e4 {[%clk 0:03:00]}  g6 {[%clk 0:02:41]} 7. Bb5+ {[%clk 0:03:00]}  Bd7 {[%clk 0:02:38]} 8. Bxd7+ {[%clk 0:02:55]}  Nbxd7 {[%clk 0:02:37]} 9. a4 {[%clk 0:02:49]}  Bg7 {[%clk 0:02:33]} 10. Nge2 {[%clk 0:02:44]}  Kf8 {[%clk 0:02:33]} 11. O-O {[%clk 0:02:44]}  Ke8 {[%clk 0:02:34]} 12. Bf4 {[%clk 0:02:39]}  Ne5 {[%clk 0:02:25]} 13. Bxe5 {[%clk 0:02:37]}  dxe5 {[%clk 0:02:25]} 14. f4 {[%clk 0:02:34]}  exf4 {[%clk 0:02:22]} 15. Nxf4 {[%clk 0:02:31]}  Ke7 {[%clk 0:02:20]} 16. e5 {[%clk 0:02:24]}  Nd7 {[%clk 0:02:17]} 17. e6 {[%clk 0:02:22]}  Ne5 {[%clk 0:02:11]} 18. Ne4 {[%clk 0:02:15]} 1-0


[Site "https://www.chess.com"]

[Event "Titled Tuesday Blitz January 03 Early 2023"]
[White "Ronka, Erik"]
[Black "Coelho, Ramyres Santana"]
[WhiteFideId "505080"]
[BlackFideId "2120690"]
[WhiteElo "2276"]
[BlackElo "1981"]
[Result "1-0"]
[Round "05"]
[TimeControl "180+2"]
[Date "2023.01.03"]
[WhiteClock "0:01:07"]
[BlackClock "0:00:02"]

1. d4 {[%clk 0:02:58]}  Nf6 {[%clk 0:01:54]} 2. c4 {[%clk 0:02:57]}  g6 {[%clk 0:01:53]} 3. Nc3 {[%clk 0:02:58]}  d5 {[%clk 0:01:52]} 4. Bf4 {[%clk 0:02:56]}  Bg7 {[%clk 0:01:49]} 5. e3 {[%clk 0:02:55]}  dxc4 {[%clk 0:01:43]} 6. Bxc4 {[%clk 0:02:53]}  a6 {[%clk 0:01:42]} 7. Nf3 {[%clk 0:02:52]}  b5 {[%clk 0:01:43]} 8. Bb3 {[%clk 0:02:50]}  Bb7 {[%clk 0:01:43]} 9. O-O {[%clk 0:02:50]}  O-O {[%clk 0:01:43]} 10. Rc1 {[%clk 0:02:50]}  Nbd7 {[%clk 0:01:41]} 11. a4 {[%clk 0:02:37]}  b4 {[%clk 0:01:40]} 12. Na2 {[%clk 0:02:38]}  Rc8 {[%clk 0:01:28]} 13. Nxb4 {[%clk 0:02:11]}  c5 {[%clk 0:01:15]} 14. Nd3 {[%clk 0:02:08]}  cxd4 {[%clk 0:01:09]} 15. Rxc8 {[%clk 0:02:09]}  Qxc8 {[%clk 0:01:09]} 16. exd4 {[%clk 0:02:10]}  Nd5 {[%clk 0:01:07]} 17. Bg5 {[%clk 0:02:03]}  Re8 {[%clk 0:01:00]} 18. Qd2 {[%clk 0:02:02]}  N7f6 {[%clk 0:00:56]} 19. Nfe5 {[%clk 0:01:57]}  Qf5 {[%clk 0:00:54]} 20. Nc5 {[%clk 0:01:47]}  Ba8 {[%clk 0:00:48]} 21. Bc2 {[%clk 0:01:47]}  Qc8 {[%clk 0:00:42]} 22. Bd3 {[%clk 0:01:45]}  Ng4 {[%clk 0:00:17]} 23. Bxa6 {[%clk 0:01:35]}  Qf5 {[%clk 0:00:09]} 24. Bd3 {[%clk 0:01:33]}  Qc8 {[%clk 0:00:08]} 25. Nf3 {[%clk 0:01:25]}  Nb6 {[%clk 0:00:02]} 26. Be2 {[%clk 0:01:16]}  Qc7 {[%clk 0:00:02]} 27. Bf4 {[%clk 0:01:12]}  Qb7 {[%clk 0:00:02]} 28. Nxb7 {[%clk 0:01:07]} 1-0


[Site "https://www.chess.com"]

[Event "Titled Tuesday Blitz January 03 Early 2023"]
[White "Patrascu, Catalin-Lucian"]
[Black "Corredor Castellanos, Camilo"]
[WhiteFideId "1229052"]
[BlackFideId "4425871"]
[WhiteElo "2279"]
[BlackElo "1957"]
[Result "1-0"]
[Round "05"]
[TimeControl "180+2"]
[Date "2023.01.03"]
[WhiteClock "0:00:05"]
[BlackClock "0:00:09"]

1. e4 {[%clk 0:03:00]}  c5 {[%clk 0:02:58]} 2. Nf3 {[%clk 0:03:00]}  d6 {[%clk 0:02:58]} 3. d4 {[%clk 0:02:59]}  cxd4 {[%clk 0:02:59]} 4. Nxd4 {[%clk 0:02:59]}  Nf6 {[%clk 0:03:00]} 5. Nc3 {[%clk 0:03:00]}  a6 {[%clk 0:03:00]} 6. Be2 {[%clk 0:03:00]}  b5 {[%clk 0:02:49]} 7. a3 {[%clk 0:02:47]}  Bb7 {[%clk 0:02:48]} 8. Bf3 {[%clk 0:02:25]}  Nbd7 {[%clk 0:02:42]} 9. Bg5 {[%clk 0:02:15]}  h6 {[%clk 0:02:28]} 10. Bxf6 {[%clk 0:02:12]}  gxf6 {[%clk 0:02:25]} 11. Bh5 {[%clk 0:02:04]}  Rg8 {[%clk 0:01:57]} 12. Nd5 {[%clk 0:01:41]}  Bxd5 {[%clk 0:01:37]} 13. exd5 {[%clk 0:01:40]}  Rg5 {[%clk 0:01:36]} 14. Ne6 {[%clk 0:01:09]}  Re5+ {[%clk 0:01:34]} 15. Kf1 {[%clk 0:01:09]}  Qb6 {[%clk 0:01:17]} 16. f4 {[%clk 0:00:49]}  Re3 {[%clk 0:00:45]} 17. Qg4 {[%clk 0:00:35]}  Rc8 {[%clk 0:00:20]} 18. Qg8 {[%clk 0:00:27]}  Rxe6 {[%clk 0:00:20]} 19. dxe6 {[%clk 0:00:23]}  Rxc2 {[%clk 0:00:20]} 20. Qxf7+ {[%clk 0:00:21]}  Kd8 {[%clk 0:00:19]} 21. Qe8+ {[%clk 0:00:12]}  Kc7 {[%clk 0:00:18]} 22. Qxd7+ {[%clk 0:00:13]}  Kb8 {[%clk 0:00:19]} 23. Be2 {[%clk 0:00:08]}  Qe3 {[%clk 0:00:18]} 24. Re1 {[%clk 0:00:05]}  Qxf4+ {[%clk 0:00:17]} 25. Bf3 {[%clk 0:00:05]}  Qc4+ {[%clk 0:00:17]} 26. Re2 {[%clk 0:00:03]}  Rxe2 {[%clk 0:00:15]} 27. Bxe2 {[%clk 0:00:04]}  Qf4+ {[%clk 0:00:15]} 28. Bf3 {[%clk 0:00:04]}  Qc1+ {[%clk 0:00:15]} 29. Kf2 {[%clk 0:00:05]}  Qc5+ {[%clk 0:00:15]} 30. Ke2 {[%clk 0:00:04]}  Qc2+ {[%clk 0:00:14]} 31. Kf1 {[%clk 0:00:04]}  Qc1+ {[%clk 0:00:14]} 32. Kf2 {[%clk 0:00:04]}  Qc5+ {[%clk 0:00:15]} 33. Kg3 {[%clk 0:00:05]}  Qg5+ {[%clk 0:00:15]} 34. Kh3 {[%clk 0:00:06]}  Qf5+ {[%clk 0:00:15]} 35. Bg4 {[%clk 0:00:06]}  Qd3+ {[%clk 0:00:15]} 36. Kh4 {[%clk 0:00:05]}  Bg7 {[%clk 0:00:12]} 37. Rc1 {[%clk 0:00:05]}  f5 {[%clk 0:00:09]} 38. Rc8# {[%clk 0:00:05]} 1-0


[Site "https://www.chess.com"]

[Event "Titled Tuesday Blitz January 03 Early 2023"]
[White "Borrmann, Laurenz"]
[Black "Blokhin, Sofia"]
[WhiteFideId "312187930"]
[BlackFideId "4508190"]
[WhiteElo "2304"]
[BlackElo "2062"]
[Result "0-1"]
[Round "05"]
[TimeControl "180+2"]
[Date "2023.01.03"]
[WhiteClock "0:00:10"]
[BlackClock "0:00:11"]

1. Nf3 {[%clk 0:02:59]}  e6 {[%clk 0:02:59]} 2. g3 {[%clk 0:02:49]}  f5 {[%clk 0:02:56]} 3. Bg2 {[%clk 0:02:49]}  Nf6 {[%clk 0:02:57]} 4. O-O {[%clk 0:02:49]}  Be7 {[%clk 0:02:57]} 5. d4 {[%clk 0:02:47]}  O-O {[%clk 0:02:57]} 6. c4 {[%clk 0:02:47]}  d5 {[%clk 0:02:57]} 7. Nc3 {[%clk 0:02:39]}  c6 {[%clk 0:02:56]} 8. Bf4 {[%clk 0:02:33]}  Ne4 {[%clk 0:02:54]} 9. Rc1 {[%clk 0:02:27]}  b6 {[%clk 0:02:50]} 10. Ne5 {[%clk 0:02:19]}  Bb7 {[%clk 0:02:48]} 11. cxd5 {[%clk 0:02:04]}  exd5 {[%clk 0:02:32]} 12. Qb3 {[%clk 0:01:57]}  g5 {[%clk 0:02:25]} 13. Nxe4 {[%clk 0:01:45]}  gxf4 {[%clk 0:02:08]} 14. Nd2 {[%clk 0:01:36]}  Bg5 {[%clk 0:02:00]} 15. e3 {[%clk 0:01:17]}  fxe3 {[%clk 0:01:55]} 16. fxe3 {[%clk 0:01:18]}  Qd6 {[%clk 0:01:47]} 17. Ndf3 {[%clk 0:01:14]}  Bf6 {[%clk 0:01:43]} 18. Qd3 {[%clk 0:01:09]}  Bg7 {[%clk 0:01:40]} 19. Bh3 {[%clk 0:01:07]}  Nd7 {[%clk 0:01:22]} 20. Nxd7 {[%clk 0:01:06]}  Qxd7 {[%clk 0:01:21]} 21. Nh4 {[%clk 0:01:06]}  Qe8 {[%clk 0:01:14]} 22. Bxf5 {[%clk 0:01:01]}  Qh5 {[%clk 0:01:09]} 23. Rc2 {[%clk 0:00:38]}  a5 {[%clk 0:01:07]} 24. Rcf2 {[%clk 0:00:37]}  Ba6 {[%clk 0:01:07]} 25. Be6+ {[%clk 0:00:34]}  Kh8 {[%clk 0:01:06]} 26. Rxf8+ {[%clk 0:00:31]}  Bxf8 {[%clk 0:01:03]} 27. Rxf8+ {[%clk 0:00:24]}  Rxf8 {[%clk 0:01:02]} 28. Qxa6 {[%clk 0:00:25]}  Qd1+ {[%clk 0:01:00]} 29. Kg2 {[%clk 0:00:25]}  Qd2+ {[%clk 0:00:54]} 30. Kh3 {[%clk 0:00:25]}  Qxe3 {[%clk 0:00:48]} 31. Bg4 {[%clk 0:00:23]}  Qxd4 {[%clk 0:00:44]} 32. Qe2 {[%clk 0:00:23]}  Qf6 {[%clk 0:00:40]} 33. Nf3 {[%clk 0:00:21]}  c5 {[%clk 0:00:39]} 34. Kg2 {[%clk 0:00:20]}  d4 {[%clk 0:00:36]} 35. Nd2 {[%clk 0:00:19]}  b5 {[%clk 0:00:31]} 36. Bf3 {[%clk 0:00:19]}  c4 {[%clk 0:00:29]} 37. Ne4 {[%clk 0:00:18]}  Qe5 {[%clk 0:00:25]} 38. Qd2 {[%clk 0:00:17]}  d3 {[%clk 0:00:22]} 39. Qh6 {[%clk 0:00:13]}  Qxb2+ {[%clk 0:00:20]} 40. Kh3 {[%clk 0:00:11]}  Rxf3 {[%clk 0:00:15]} 41. Ng5 {[%clk 0:00:11]}  Qg7 {[%clk 0:00:11]} 42. Qxg7+ {[%clk 0:00:09]}  Kxg7 {[%clk 0:00:11]} 43. Nxf3 {[%clk 0:00:10]}  c3 {[%clk 0:00:11]} 0-1


[Site "https://www.chess.com"]

[Event "Titled Tuesday Blitz January 03 Early 2023"]
[White "Sailer, Mike"]
[Black "Cella, Glaucio Dalla Cortt"]
[WhiteFideId "2012901"]
[BlackFideId "2119455"]
[WhiteElo "2109"]
[BlackElo "1894"]
[Result "0-1"]
[Round "05"]
[TimeControl "180+2"]
[Date "2023.01.03"]
[WhiteClock "0:00:03"]
[BlackClock "0:00:12"]

1. d4 {[%clk 0:02:59]}  Nf6 {[%clk 0:02:59]} 2. Bf4 {[%clk 0:02:58]}  e6 {[%clk 0:02:59]} 3. e3 {[%clk 0:02:59]}  Bd6 {[%clk 0:02:59]} 4. Bxd6 {[%clk 0:02:57]}  cxd6 {[%clk 0:02:59]} 5. f4 {[%clk 0:02:52]}  e5 {[%clk 0:02:52]} 6. fxe5 {[%clk 0:02:45]}  dxe5 {[%clk 0:02:52]} 7. Nf3 {[%clk 0:02:43]}  e4 {[%clk 0:02:49]} 8. Nfd2 {[%clk 0:02:43]}  d5 {[%clk 0:02:46]} 9. Bb5+ {[%clk 0:02:36]}  Nc6 {[%clk 0:02:44]} 10. O-O {[%clk 0:02:36]}  Ng4 {[%clk 0:02:13]} 11. Qe1 {[%clk 0:02:00]}  Qg5 {[%clk 0:02:12]} 12. Rf4 {[%clk 0:01:52]}  O-O {[%clk 0:02:13]} 13. h3 {[%clk 0:01:49]}  Nxd4 {[%clk 0:01:52]} 14. exd4 {[%clk 0:01:24]}  Qxf4 {[%clk 0:01:52]} 15. hxg4 {[%clk 0:01:24]}  Bxg4 {[%clk 0:01:52]} 16. Nc3 {[%clk 0:01:19]}  Rad8 {[%clk 0:01:44]} 17. Nf1 {[%clk 0:01:05]}  Be6 {[%clk 0:01:41]} 18. Qe3 {[%clk 0:01:04]}  Qd6 {[%clk 0:01:37]} 19. a3 {[%clk 0:00:55]}  f5 {[%clk 0:01:34]} 20. g3 {[%clk 0:00:43]}  h6 {[%clk 0:01:33]} 21. Ne2 {[%clk 0:00:41]}  a6 {[%clk 0:01:30]} 22. Ba4 {[%clk 0:00:40]}  g5 {[%clk 0:01:28]} 23. Bb3 {[%clk 0:00:39]}  f4 {[%clk 0:01:24]} 24. gxf4 {[%clk 0:00:37]}  gxf4 {[%clk 0:01:25]} 25. Qf2 {[%clk 0:00:36]}  Rd7 {[%clk 0:01:19]} 26. Kh1 {[%clk 0:00:28]}  Kh7 {[%clk 0:01:08]} 27. Nh2 {[%clk 0:00:28]}  f3 {[%clk 0:00:58]} 28. Ng3 {[%clk 0:00:22]}  Rg7 {[%clk 0:00:58]} 29. Ngf1 {[%clk 0:00:05]}  Rfg8 {[%clk 0:00:58]} 30. Ne3 {[%clk 0:00:05]}  Rg3 {[%clk 0:00:16]} 31. c4 {[%clk 0:00:04]}  Rh3 {[%clk 0:00:13]} 32. Nxd5 {[%clk 0:00:03]}  Rg2 {[%clk 0:00:12]} 0-1


[Site "https://www.chess.com"]

[Event "Titled Tuesday Blitz January 03 Early 2023"]
[White "reevecanada"]
[Black "Baskakov, Egor"]
[BlackFideId "24197866"]
[WhiteElo "2477"]
[BlackElo "2215"]
[Result "1/2-1/2"]
[Round "05"]
[TimeControl "180+2"]
[Date "2023.01.03"]
[WhiteClock "0:00:20"]
[BlackClock "0:00:25"]

1. e4 {[%clk 0:02:56]}  c5 {[%clk 0:02:59]} 2. Nf3 {[%clk 0:02:53]}  Nf6 {[%clk 0:03:00]} 3. Nc3 {[%clk 0:02:52]}  d5 {[%clk 0:03:00]} 4. exd5 {[%clk 0:02:43]}  Nxd5 {[%clk 0:03:00]} 5. Be2 {[%clk 0:02:43]}  Nc6 {[%clk 0:03:00]} 6. O-O {[%clk 0:02:43]}  e5 {[%clk 0:03:00]} 7. Re1 {[%clk 0:02:42]}  f6 {[%clk 0:03:01]} 8. Bc4 {[%clk 0:02:42]}  Be6 {[%clk 0:02:58]} 9. d3 {[%clk 0:02:41]}  Be7 {[%clk 0:02:58]} 10. Bd2 {[%clk 0:02:38]}  O-O {[%clk 0:02:57]} 11. Qb1 {[%clk 0:02:36]}  Qd7 {[%clk 0:02:55]} 12. a3 {[%clk 0:02:35]}  Nd4 {[%clk 0:02:45]} 13. Nxd4 {[%clk 0:02:08]}  cxd4 {[%clk 0:02:46]} 14. Nxd5 {[%clk 0:02:07]}  Bxd5 {[%clk 0:02:47]} 15. Qa2 {[%clk 0:02:07]}  Bxc4 {[%clk 0:02:43]} 16. Qxc4+ {[%clk 0:02:08]}  Kh8 {[%clk 0:02:43]} 17. Qb3 {[%clk 0:02:08]}  Rac8 {[%clk 0:02:42]} 18. Rac1 {[%clk 0:02:05]}  Rc6 {[%clk 0:02:33]} 19. c3 {[%clk 0:02:02]}  dxc3 {[%clk 0:02:26]} 20. Rxc3 {[%clk 0:02:00]}  Rxc3 {[%clk 0:02:26]} 21. Bxc3 {[%clk 0:02:01]}  Bc5 {[%clk 0:02:20]} 22. Qc4 {[%clk 0:01:58]}  Rc8 {[%clk 0:02:15]} 23. Qe4 {[%clk 0:01:56]}  b6 {[%clk 0:01:59]} 24. h3 {[%clk 0:01:53]}  Rd8 {[%clk 0:01:58]} 25. Rd1 {[%clk 0:01:49]}  a5 {[%clk 0:01:44]} 26. b4 {[%clk 0:01:40]}  axb4 {[%clk 0:01:45]} 27. axb4 {[%clk 0:01:39]}  Bd4 {[%clk 0:01:45]} 28. Bxd4 {[%clk 0:01:34]}  Qxd4 {[%clk 0:01:46]} 29. Rc1 {[%clk 0:01:30]}  h6 {[%clk 0:01:30]} 30. Rc6 {[%clk 0:01:22]}  Qa1+ {[%clk 0:01:08]} 31. Kh2 {[%clk 0:01:20]}  Qb2 {[%clk 0:01:09]} 32. Kg1 {[%clk 0:01:03]}  Qb1+ {[%clk 0:00:49]} 33. Kh2 {[%clk 0:01:01]}  Qxd3 {[%clk 0:00:50]} 34. Qxd3 {[%clk 0:01:00]}  Rxd3 {[%clk 0:00:51]} 35. Rxb6 {[%clk 0:01:00]}  Rb3 {[%clk 0:00:48]} 36. h4 {[%clk 0:00:53]}  h5 {[%clk 0:00:48]} 37. b5 {[%clk 0:00:46]}  Kh7 {[%clk 0:00:46]} 38. Rb8 {[%clk 0:00:45]}  Kg6 {[%clk 0:00:45]} 39. b6 {[%clk 0:00:44]}  f5 {[%clk 0:00:44]} 40. b7 {[%clk 0:00:42]}  e4 {[%clk 0:00:41]} 41. g3 {[%clk 0:00:38]}  Rb2 {[%clk 0:00:40]} 42. Kg1 {[%clk 0:00:38]}  Rb1+ {[%clk 0:00:37]} 43. Kg2 {[%clk 0:00:38]}  Rb2 {[%clk 0:00:37]} 44. Kg1 {[%clk 0:00:33]}  Rb1+ {[%clk 0:00:36]} 45. Kg2 {[%clk 0:00:32]}  Rb2 {[%clk 0:00:37]} 46. Kf1 {[%clk 0:00:32]}  Kh7 {[%clk 0:00:20]} 47. Rf8 {[%clk 0:00:28]}  Rxb7 {[%clk 0:00:19]} 48. Rxf5 {[%clk 0:00:28]}  g6 {[%clk 0:00:18]} 49. Re5 {[%clk 0:00:28]}  Rb4 {[%clk 0:00:18]} 50. Ke2 {[%clk 0:00:28]}  Kg7 {[%clk 0:00:18]} 51. Ke3 {[%clk 0:00:27]}  Kf6 {[%clk 0:00:18]} 52. Rxe4 {[%clk 0:00:27]}  Rb3+ {[%clk 0:00:18]} 53. Kf4 {[%clk 0:00:27]}  Rb2 {[%clk 0:00:17]} 54. f3 {[%clk 0:00:27]}  Rb5 {[%clk 0:00:17]} 55. Rc4 {[%clk 0:00:24]}  Rd5 {[%clk 0:00:15]} 56. Rc6+ {[%clk 0:00:23]}  Kg7 {[%clk 0:00:15]} 57. Ke4 {[%clk 0:00:22]}  Ra5 {[%clk 0:00:15]} 58. Kf4 {[%clk 0:00:21]}  Ra4+ {[%clk 0:00:14]} 59. Ke3 {[%clk 0:00:20]}  Ra3+ {[%clk 0:00:14]} 60. Kf2 {[%clk 0:00:20]}  Ra2+ {[%clk 0:00:15]} 61. Kg1 {[%clk 0:00:21]}  Ra3 {[%clk 0:00:15]} 62. Kg2 {[%clk 0:00:21]}  Ra2+ {[%clk 0:00:15]} 63. Kh3 {[%clk 0:00:21]}  Ra3 {[%clk 0:00:16]} 64. f4 {[%clk 0:00:18]}  Rb3 {[%clk 0:00:16]} 65. Rc7+ {[%clk 0:00:19]}  Kf6 {[%clk 0:00:16]} 66. Kg2 {[%clk 0:00:19]}  Rb2+ {[%clk 0:00:16]} 67. Kf3 {[%clk 0:00:19]}  Rb3+ {[%clk 0:00:16]} 68. Kf2 {[%clk 0:00:20]}  Rb2+ {[%clk 0:00:17]} 69. Kg1 {[%clk 0:00:20]}  Ra2 {[%clk 0:00:16]} 70. Rc6+ {[%clk 0:00:19]}  Kf7 {[%clk 0:00:16]} 71. Rc5 {[%clk 0:00:17]}  Kf6 {[%clk 0:00:17]} 72. Rg5 {[%clk 0:00:17]}  Ra3 {[%clk 0:00:16]} 73. Kg2 {[%clk 0:00:17]}  Ra2+ {[%clk 0:00:16]} 74. Kh3 {[%clk 0:00:18]}  Ra1 {[%clk 0:00:15]} 75. f5 {[%clk 0:00:17]}  gxf5 {[%clk 0:00:16]} 76. Rxh5 {[%clk 0:00:17]}  Ra3 {[%clk 0:00:16]} 77. Kg2 {[%clk 0:00:17]}  Ra2+ {[%clk 0:00:16]} 78. Kf3 {[%clk 0:00:17]}  Ra3+ {[%clk 0:00:16]} 79. Kg2 {[%clk 0:00:17]}  Ra2+ {[%clk 0:00:17]} 80. Kh3 {[%clk 0:00:17]}  Ra3 {[%clk 0:00:17]} 81. Rg5 {[%clk 0:00:13]}  f4 {[%clk 0:00:15]} 82. Rg4 {[%clk 0:00:12]}  fxg3 {[%clk 0:00:16]} 83. Rxg3 {[%clk 0:00:12]}  Rxg3+ {[%clk 0:00:15]} 84. Kxg3 {[%clk 0:00:13]}  Kg6 {[%clk 0:00:16]} 85. Kg4 {[%clk 0:00:14]}  Kh6 {[%clk 0:00:17]} 86. h5 {[%clk 0:00:15]}  Kh7 {[%clk 0:00:17]} 87. Kh4 {[%clk 0:00:16]}  Kh8 {[%clk 0:00:18]} 88. Kg5 {[%clk 0:00:17]}  Kh7 {[%clk 0:00:18]} 89. h6 {[%clk 0:00:18]}  Kh8 {[%clk 0:00:19]} 90. Kh5 {[%clk 0:00:18]}  Kg8 {[%clk 0:00:20]} 91. Kg6 {[%clk 0:00:19]}  Kh8 {[%clk 0:00:21]} 92. Kg5 {[%clk 0:00:18]}  Kg8 {[%clk 0:00:22]} 93. Kh5 {[%clk 0:00:19]}  Kh8 {[%clk 0:00:23]} 94. Kg6 {[%clk 0:00:20]}  Kg8 {[%clk 0:00:24]} 95. h7+ {[%clk 0:00:20]}  Kh8 {[%clk 0:00:25]} 96. Kh6 {[%clk 0:00:20]} 1/2-1/2


[Site "https://www.chess.com"]

[Event "Titled Tuesday Blitz January 03 Early 2023"]
[White "Papp, Levente"]
[Black "Guliev, Logman"]
[WhiteFideId "751243"]
[BlackFideId "13400061"]
[WhiteElo "2353"]
[BlackElo "2250"]
[Result "1-0"]
[Round "05"]
[TimeControl "180+2"]
[Date "2023.01.03"]
[WhiteClock "0:00:10"]
[BlackClock "0:00:01"]

1. c4 {[%clk 0:03:00]}  Nf6 {[%clk 0:02:57]} 2. Nc3 {[%clk 0:03:00]}  g6 {[%clk 0:02:58]} 3. g3 {[%clk 0:02:59]}  Bg7 {[%clk 0:02:57]} 4. Bg2 {[%clk 0:02:59]}  O-O {[%clk 0:02:58]} 5. e4 {[%clk 0:02:58]}  d6 {[%clk 0:02:58]} 6. Nge2 {[%clk 0:02:59]}  e5 {[%clk 0:02:58]} 7. O-O {[%clk 0:02:59]}  Nc6 {[%clk 0:02:58]} 8. d3 {[%clk 0:02:58]}  Nh5 {[%clk 0:02:54]} 9. Nd5 {[%clk 0:02:54]}  Ne7 {[%clk 0:02:38]} 10. Nxe7+ {[%clk 0:02:30]}  Qxe7 {[%clk 0:02:37]} 11. d4 {[%clk 0:02:31]}  Bd7 {[%clk 0:02:27]} 12. Be3 {[%clk 0:02:21]}  exd4 {[%clk 0:02:04]} 13. Nxd4 {[%clk 0:02:07]}  Nf6 {[%clk 0:02:01]} 14. f3 {[%clk 0:02:00]}  Nh5 {[%clk 0:01:49]} 15. Qd2 {[%clk 0:01:55]}  Rae8 {[%clk 0:01:47]} 16. Rfe1 {[%clk 0:01:51]}  Qd8 {[%clk 0:01:44]} 17. Rad1 {[%clk 0:01:46]}  a6 {[%clk 0:01:44]} 18. Bh6 {[%clk 0:01:23]}  Bxh6 {[%clk 0:01:33]} 19. Qxh6 {[%clk 0:01:23]}  Qf6 {[%clk 0:01:34]} 20. Qd2 {[%clk 0:01:15]}  Qe5 {[%clk 0:01:25]} 21. Rc1 {[%clk 0:01:00]}  Qc5 {[%clk 0:01:24]} 22. Qf2 {[%clk 0:01:00]}  Ng7 {[%clk 0:01:17]} 23. a3 {[%clk 0:00:54]}  a5 {[%clk 0:01:05]} 24. f4 {[%clk 0:00:48]}  b6 {[%clk 0:00:42]} 25. Rb1 {[%clk 0:00:37]}  a4 {[%clk 0:00:35]} 26. Rbc1 {[%clk 0:00:36]}  Qh5 {[%clk 0:00:27]} 27. Bf3 {[%clk 0:00:31]}  Bg4 {[%clk 0:00:25]} 28. Bg2 {[%clk 0:00:31]}  Ne6 {[%clk 0:00:21]} 29. Nb5 {[%clk 0:00:29]}  Re7 {[%clk 0:00:17]} 30. Nc3 {[%clk 0:00:28]}  c6 {[%clk 0:00:12]} 31. Qxb6 {[%clk 0:00:27]}  Nc5 {[%clk 0:00:10]} 32. Qxc6 {[%clk 0:00:21]}  Nd3 {[%clk 0:00:08]} 33. Qxd6 {[%clk 0:00:17]}  Nxe1 {[%clk 0:00:09]} 34. Rxe1 {[%clk 0:00:14]}  Rd7 {[%clk 0:00:09]} 35. Qb6 {[%clk 0:00:14]}  Rd2 {[%clk 0:00:09]} 36. Qe3 {[%clk 0:00:10]}  Rxb2 {[%clk 0:00:08]} 37. Nd5 {[%clk 0:00:11]}  f6 {[%clk 0:00:07]} 38. Qc3 {[%clk 0:00:10]}  Rxg2+ {[%clk 0:00:04]} 39. Kxg2 {[%clk 0:00:10]}  Qh3+ {[%clk 0:00:03]} 40. Kg1 {[%clk 0:00:10]}  Kg7 {[%clk 0:00:02]} 41. Rb1 {[%clk 0:00:10]}  Rf7 {[%clk 0:00:03]} 42. c5 {[%clk 0:00:10]}  Bc8 {[%clk 0:00:01]} 43. c6 {[%clk 0:00:10]} 1-0


[Site "https://www.chess.com"]